bitfinex-derivatives/quotes_SOLF0:USTF0_20250625
["timestamp","ask_amount","ask_price","bid_price","bid_amount"]
[1750810975217,6.8582,145.75,145.73,6.8589]
[1750810975916,6.8584,145.74,145.72,8.5005447]
[1750810976316,6.8584,145.74,145.69,2.3008]
[1750810976317,35.8,145.76,145.71,8.5005447]
[1750810976512,6.8589,145.73,145.71,8.5005447]
[1750810977929,2.3334,145.75,145.69,8.5005447]
[1750810978135,35.72,145.72,145.69,8.5005447]
[1750810978320,35.72,145.72,145.68,15.3616447]
[1750810978524,35.72,145.72,145.68,8.5005447]
[1750810978927,6.8606,145.7,145.68,8.5005447]
[1750810979122,35.72,145.72,145.68,8.5005447]
[1750810979323,35.72,145.72,145.67,15.3619447]
[1750810980626,35.72,145.72,145.67,8.5005447]
[1750810980822,6.8611,145.69,145.67,8.5005447]
[1750810981324,35.72,145.72,145.66,15.3625447]
[1750810982226,6.8613,145.68,145.66,8.5005447]
[1750810982527,6.8613,145.68,145.65,15.3629447]
[1750810982728,6.8618,145.67,145.64,8.5005447]
[1750810982919,35.72,145.68,145.62,8.5005447]
[1750810983325,35.72,145.68,145.61,8.5005447]
[1750810983525,2.4101,145.67,145.6,8.5005447]
[1750810983826,6.8629,145.65,145.62,6.8638]
[1750810984833,6.8624,145.66,145.63,6.8636]
[1750810985029,35.72,145.68,145.61,8.5005447]
[1750810985236,35.72,145.68,145.61,10.9210447]
[1750810985439,35.72,145.68,145.66,6.8621]
[1750810986127,35.72,145.68,145.67,6.8617]
[1750810987432,35.72,145.68,145.66,6.8621]
[1750810987728,35.72,145.68,145.62,8.5005447]
[1750810988232,35.72,145.68,145.61,46.6410447]
[1750810988838,35.72,145.68,145.67,6.8617]
[1750810992039,2.4101,145.72,145.62,10.8299447]
[1750810992040,38.1501,145.72,145.63,8.5005447]
[1750810992945,38.1501,145.72,145.69,6.8605]
[1750810993450,6.8601,145.71,145.63,8.5005447]
[1750810993938,6.8601,145.71,145.62,10.8299447]
[1750810994644,38.1501,145.72,145.66,6.8618]
[1750810995036,6.8611,145.69,145.66,6.8618]
[1750810995532,38.1501,145.72,145.66,6.8618]
[1750810996245,6.8615,145.68,145.66,6.8618]
[1750810996444,6.8615,145.68,145.65,6.8624]
[1750810996641,38.1501,145.72,145.65,6.8624]
[1750810996837,6.8629,145.65,145.61,38.1405]
[1750810997239,6.8629,145.65,145.61,35.72]
[1750810997946,6.8629,145.65,145.63,6.8633]
[1750811000840,6.8624,145.66,145.63,6.8633]
[1750811001748,6.8624,145.66,145.64,6.8631]
[1750811002846,6.862,145.67,145.64,6.8631]
[1750811003048,35.74,145.68,145.64,6.8631]
[1750811004142,6.8623,145.66,145.64,6.8631]
[1750811004448,35.74,145.68,145.61,44.2205447]
[1750811004845,35.74,145.68,145.61,106.2205447]
[1750811005047,42.6013,145.68,145.66,6.862]
[1750811006144,6.8617,145.67,145.65,6.8624]
[1750811007247,42.6015,145.68,145.65,6.8624]
[1750811007853,42.6015,145.68,145.66,6.8622]
[1750811008154,35.74,145.68,145.62,2.3824]
[1750811008354,35.64,145.71,145.62,10.8829447]
[1750811008554,35.64,145.71,145.63,10.6974447]
[1750811008756,35.64,145.71,145.64,8.5005447]
[1750811009255,35.64,145.71,145.7,6.8603]
[1750811009850,35.64,145.71,145.69,6.8605]
[1750811010955,42.5001,145.71,145.69,6.8605]
[1750811012456,42.5001,145.71,145.68,6.861]
[1750811013854,42.5001,145.71,145.69,6.8607]
[1750811014258,6.8603,145.7,145.65,46.3700447]
[1750811014657,35.64,145.71,145.65,46.3700447]
[1750811014857,42.5001,145.71,145.65,46.3700447]
[1750811015564,35.64,145.71,145.65,46.3700447]
[1750811015755,35.64,145.71,145.7,6.8603]
[1750811015963,628.1,145.74,145.7,6.8603]
[1750811016156,6.8592,145.73,145.7,6.8603]
[1750811016653,634.9587,145.74,145.66,8.5005447]
[1750811017064,634.9587,145.74,145.72,6.8593]
[1750811017265,42.4987,145.74,145.72,6.8593]
[1750811017564,42.4987,145.74,145.67,8.5005447]
[1750811017565,35.64,145.74,145.67,8.5005447]
[1750811017757,35.64,145.74,145.73,6.8589]
[1750811022057,42.4972,145.77,145.75,6.8578]
[1750811022568,42.4972,145.77,145.74,6.8582]
[1750811023368,6.8575,145.76,145.74,6.8582]
[1750811025163,42.4973,145.77,145.74,6.8582]
[1750811025759,6.8573,145.77,145.74,6.8582]
[1750811026269,37.8413,145.8,145.74,8.5005447]
[1750811026458,35.64,145.8,145.74,8.5005447]
[1750811026964,35.64,145.8,145.75,8.5005447]
[1750811027161,6.8549,145.82,145.8,6.8555]
[1750811028067,35.62,145.83,145.79,6.8558]
[1750811028370,35.62,145.83,145.75,8.5005447]
[1750811028566,6.8555,145.81,145.78,6.8565]
[1750811028763,6.8555,145.81,145.74,8.5005447]
[1750811028961,35.62,145.83,145.73,48.2392147]
[1750811029165,6.8549,145.82,145.79,6.8557]
[1750811029369,35.62,145.83,145.73,61.9565147]
[1750811029961,42.4745,145.83,145.8,6.8552]
[1750811036074,6.8547,145.82,145.8,6.8552]
[1750811036760,6.8547,145.82,145.79,6.8558]
[1750811037066,6.8553,145.81,145.79,6.8558]
[1750811038975,6.8549,145.82,145.79,6.8558]
[1750811040469,6.8552,145.81,145.79,6.8558]
[1750811040674,35.62,145.83,145.78,6.8563]
[1750811041074,6.856,145.8,145.78,6.8563]
[1750811042364,35.62,145.83,145.79,6.856]
[1750811042365,6.8554,145.81,145.79,6.856]
[1750811045278,6.8554,145.81,145.78,6.8563]
[1750811045478,6.8557,145.8,145.78,6.8563]
[1750811046378,6.8561,145.79,145.73,35.64]
[1750811046586,42.3761,145.79,145.73,35.64]
[1750811046979,42.3761,145.79,145.77,6.8568]
[1750811051891,6.8567,145.78,145.76,6.8573]
[1750811053392,42.3763,145.79,145.77,6.857]
[1750811054087,42.3763,145.79,145.76,6.8572]
[1750811055897,42.3763,145.79,145.77,6.857]
[1750811056298,6.8566,145.78,145.72,8.42929696]
[1750811056899,6.8566,145.78,145.76,6.8572]
[1750811060004,6.857,145.77,145.75,6.8579]
[1750811060304,35.52,145.79,145.71,48.1192147]
[1750811060496,6.8568,145.78,145.76,6.8573]
[1750811061797,6.857,145.77,145.75,6.8578]
[1750811062795,6.8568,145.78,145.76,6.8575]
[1750811066009,42.3762,145.79,145.77,6.857]
[1750811067708,6.8566,145.78,145.76,6.8572]
[1750811069603,42.3763,145.79,145.76,6.8572]
[1750811071105,6.8567,145.78,145.76,6.8572]
[1750811072222,35.52,145.79,145.73,8.48658652]
[1750811072402,6.34146203,145.78,145.72,8.48658652]
[1750811072606,6.8589,145.73,145.72,8.48658652]
[1750811072806,6.8589,145.73,145.71,8.48658652]
[1750811073203,35.42,145.74,145.7,15.34658652]
[1750811073402,35.42,145.74,145.69,8.48658652]
[1750811074209,6.8596,145.72,145.69,15.34728652]
[1750811074414,6.8596,145.72,145.68,8.48658652]
[1750811074614,35.42,145.74,145.69,8.48658652]
[1750811074811,6.8592,145.73,145.7,6.8603]
[1750811075915,35.42,145.74,145.68,8.48658652]
[1750811075916,6.8594,145.72,145.69,6.8606]
[1750811078419,35.42,145.74,145.67,8.48658652]
[1750811078612,35.42,145.74,145.68,8.48658652]
[1750811078915,35.42,145.74,145.7,8.48658652]
[1750811079418,35.42,145.74,145.73,6.8589]
[1750811081309,6.8578,145.76,145.73,6.8589]
[1750811081717,42.2972,145.77,145.74,6.8583]
[1750811081919,42.2972,145.77,145.72,8.48658652]
[1750811082417,42.2972,145.77,145.74,6.8581]
[1750811083113,42.2972,145.77,145.75,6.8579]
[1750811083413,35.44,145.77,145.75,6.8579]
[1750811083814,35.44,145.77,145.76,6.8575]
[1750811086325,6.8566,145.78,145.75,6.8577]
[1750811086525,35.44,145.8,145.75,6.8577]
[1750811087224,35.44,145.8,145.74,6.8582]
[1750811087824,6.8573,145.77,145.74,6.8582]
[1750811088123,35.44,145.8,145.73,8.48658652]
[1750811088124,35.44,145.8,145.75,6.8579]
[1750811088322,6.8568,145.78,145.75,6.8579]
[1750811090923,6.8571,145.77,145.75,6.8579]
[1750811091328,6.8571,145.77,145.74,6.8582]
[1750811091524,6.8571,145.77,145.73,8.48658652]
[1750811091725,6.8571,145.77,145.72,2.3118]
[1750811093123,6.8571,145.77,145.75,6.8579]
[1750811093428,6.8568,145.78,145.72,2.3118]
[1750811093624,35.44,145.8,145.72,2.3118]
[1750811093929,6.8574,145.77,145.7,4.4695]
[1750811094129,35.44,145.8,145.7,4.4695]
[1750811094130,35.44,145.8,145.74,6.8582]
[1750811095032,6.8574,145.77,145.74,6.8582]
[1750811095532,6.8568,145.78,145.75,6.8579]
[1750811096035,35.44,145.8,145.75,6.8579]
[1750811097227,6.8571,145.77,145.75,6.8579]
[1750811100044,6.8568,145.78,145.75,6.8579]
[1750811100338,6.8568,145.78,145.76,6.8575]
[1750811100737,42.1768,145.78,145.76,6.8575]
[1750811101238,42.1768,145.78,145.75,6.8578]
[1750811101239,6.857,145.77,145.75,6.8578]
[1750811104354,35.32,145.78,145.73,8.49835185]
[1750811104650,35.32,145.78,145.74,8.49835185]
[1750811105048,35.32,145.78,145.77,6.857]
[1750811105249,35.32,145.81,145.76,8.49835185]
[1750811105551,35.32,145.81,145.75,8.49835185]
[1750811105950,35.32,145.81,145.74,10.84135185]
[1750811106354,6.8561,145.79,145.75,8.49835185]
[1750811106746,35.32,145.81,145.74,10.84135185]
[1750811107144,39.44344003,145.81,145.74,8.49835185]
[1750811107349,35.32,145.81,145.74,8.49835185]
[1750811107754,39.44344926,145.81,145.74,8.49835185]
[1750811107954,35.32,145.81,145.74,8.49835185]
[1750811108256,6.857,145.78,145.75,6.8577]
[1750811108450,35.32,145.81,145.75,6.8577]
[1750811108955,6.8571,145.77,145.75,6.8577]
[1750811110552,6.8575,145.76,145.74,6.8583]
[1750811111561,6.8583,145.75,145.72,8.49835185]
[1750811111763,35.32,145.77,145.72,8.49835185]
[1750811111958,2.3449,145.76,145.71,8.49835185]
[1750811112459,6.8588,145.74,145.71,15.35795185]
[1750811112659,6.8588,145.74,145.71,6.8596]
[1750811112858,35.32,145.77,145.71,8.49835185]
[1750811113662,6.8582,145.75,145.71,8.49835185]
[1750811114063,6.8582,145.75,145.73,6.8588]
[1750811114662,6.8577,145.76,145.71,8.49835185]
[1750811114859,35.32,145.77,145.7,12.74752778]
[1750811114860,35.32,145.77,145.72,8.49835185]
[1750811115264,6.8578,145.76,145.73,6.8584]
[1750811116560,6.8578,145.76,145.74,6.8584]
[1750811118966,6.8578,145.76,145.73,6.8587]
[1750811121369,6.8578,145.76,145.73,15.35705185]
[1750811122572,6.8581,145.75,145.73,15.35705185]
[1750811122770,6.8581,145.75,145.73,6.8587]
[1750811123370,6.8581,145.75,145.73,15.35705185]
[1750811125973,6.8581,145.75,145.73,8.49835185]
[1750811126476,6.8581,145.75,145.72,15.35745185]
[1750811126780,4.12493334,145.76,145.71,8.49835185]
[1750811126971,35.32,145.77,145.71,8.49835185]
[1750811127165,6.8589,145.73,145.71,15.35785185]
[1750811127667,6.8583,145.75,145.72,6.8591]
[1750811127868,35.32,145.77,145.72,15.35745185]
[1750811128277,4.13145619,145.76,145.72,6.8591]
[1750811128477,35.32,145.77,145.72,6.8591]
[1750811128682,4.13146545,145.76,145.72,6.8591]
[1750811128977,35.32,145.77,145.72,6.8591]
[1750811129177,6.8585,145.74,145.72,6.8591]
[1750811129775,6.8591,145.73,145.71,15.35795185]
[1750811130179,6.8591,145.73,145.71,6.8596]
[1750811130366,6.8591,145.73,145.7,15.35835185]
[1750811130566,6.8596,145.72,145.7,15.35835185]
[1750811130772,2.2759,145.78,145.7,15.35835185]
[1750811130773,35.24,145.73,145.7,8.49835185]
[1750811130974,35.24,145.73,145.69,15.35895185]
[1750811131371,6.8595,145.72,145.69,15.35895185]
[1750811132079,6.8602,145.71,145.68,15.35935185]
[1750811132475,6.8608,145.69,145.68,8.49835185]
[1750811132681,4.12789053,145.72,145.66,8.49835185]
[1750811133074,6.8608,145.7,145.67,6.8615]
[1750811133277,4.12746384,145.72,145.67,6.8615]
[1750811133779,6.8607,145.7,145.67,6.8615]
[1750811133976,37.4517,145.73,145.66,8.49835185]
[1750811134177,6.86,145.71,145.67,8.49835185]
[1750811134482,37.4517,145.73,145.69,6.8607]
[1750811134683,6.8596,145.72,145.68,8.49835185]
[1750811135482,6.8596,145.72,145.69,6.8606]
[1750811137684,6.8599,145.71,145.69,6.8606]
[1750811137882,37.4517,145.73,145.69,6.8606]
[1750811138072,6.8598,145.72,145.69,6.8606]
[1750811141389,6.8598,145.72,145.7,6.8601]
[1750811141781,35.24,145.73,145.68,8.49835185]
[1750811141986,35.24,145.73,145.69,6.8603]
[1750811142190,6.8597,145.72,145.68,8.49835185]
[1750811144191,6.8597,145.72,145.7,6.8601]
[1750811146290,35.24,145.73,145.68,8.49835185]
[1750811146485,35.24,145.73,145.64,15.9221]
[1750811146986,35.24,145.73,145.69,6.8605]
[1750811148279,6.8599,145.71,145.69,6.8605]
[1750811150290,35.24,145.73,145.67,8.4983215]
[1750811151385,6.8594,145.71,145.69,6.8601]
[1750811151578,35.24,145.73,145.69,6.8601]
[1750811151980,6.8591,145.72,145.69,6.8601]
[1750811152290,35.24,145.73,145.7,6.8599]
[1750811153487,35.24,145.73,145.69,8.4983215]
[1750811153685,35.24,145.73,145.71,6.8591]
[1750811155293,42.0985,145.73,145.71,6.8591]
[1750811157893,35.24,145.76,145.72,6.8589]
[1750811158390,6.8577,145.75,145.73,6.8584]
[1750811158595,35.24,145.76,145.73,6.8584]
[1750811158795,35.24,145.76,145.72,8.4983215]
[1750811159889,42.0973,145.76,145.73,6.8584]
[1750811160396,6.8577,145.75,145.73,6.8584]
[1750811160594,35.24,145.76,145.72,15.3570215]
[1750811161190,6.8576,145.75,145.72,6.8587]
[1750811161700,6.8583,145.74,145.71,15.3575215]
[1750811164005,6.8583,145.74,145.72,6.8587]
[1750811164302,6.8577,145.75,145.72,6.8587]
[1750811165599,6.8581,145.74,145.72,6.8587]
[1750811166005,6.8581,145.74,145.72,15.3570215]
[1750811166904,6.8581,145.74,145.72,6.8587]
[1750811168704,35.24,145.76,145.72,6.8587]
[1750811168705,35.24,145.76,145.72,8.4983215]
[1750811169000,35.24,145.76,145.74,6.8576]
[1750811169406,35.24,145.76,145.72,8.4983215]
[1750811170105,35.24,145.76,145.73,8.4983215]
[1750811170306,6.8563,145.78,145.74,8.4983215]
[1750811171203,6.8563,145.78,145.75,6.8574]
[1750811171906,35.16,145.79,145.74,8.4983215]
[1750811172107,2.3134,145.78,145.73,8.4983215]
[1750811172301,2.3134,145.78,145.73,6.8582]
[1750811172505,2.3134,145.78,145.73,15.3565215]
[1750811172709,2.3134,145.78,145.72,8.4983215]
[1750811172909,6.8582,145.74,145.71,15.3575215]
[1750811173110,35.16,145.75,145.71,8.4983215]
[1750811173409,42.018,145.75,145.72,6.8586]
[1750811175510,6.858,145.74,145.72,6.8586]
[1750811176509,6.858,145.74,145.71,15.3575215]
[1750811178016,6.8585,145.73,145.71,8.4983215]
[1750811179117,6.8585,145.73,145.71,15.3574215]
[1750811180414,6.8585,145.73,145.71,8.4983215]
[1750811180715,6.8589,145.72,145.7,8.4983215]
[1750811183116,6.8589,145.72,145.7,15.3581215]
[1750811183916,6.8594,145.71,145.7,8.4983215]
[1750811184121,35.16,145.75,145.69,8.4983215]
[1750811184310,2.3315,145.74,145.69,8.4983215]
[1750811184810,2.2489,145.73,145.69,8.4983215]
[1750811185012,6.8603,145.7,145.68,8.4983215]
[1750811185314,35.16,145.7,145.66,8.4983215]
[1750811185517,6.8611,145.68,145.66,8.4983215]
[1750811185709,35.16,145.7,145.66,8.4983215]
[1750811186413,35.16,145.7,145.65,8.4983215]
[1750811186611,35.16,145.7,145.64,8.4983215]
[1750811187012,6.8615,145.67,145.64,15.3608215]
[1750811187212,6.8615,145.67,145.64,6.8625]
[1750811188215,6.8615,145.67,145.65,6.8621]
[1750811188412,6.8615,145.67,145.63,8.4983215]
[1750811188612,6.8615,145.67,145.64,6.8625]
[1750811190813,4.11940156,145.71,145.63,8.4983215]
[1750811191010,37.2987,145.72,145.66,8.4983215]
[1750811191225,6.8602,145.7,145.67,6.861]
[1750811191720,6.8602,145.7,145.66,8.4983215]
[1750811191923,6.8602,145.7,145.67,6.8612]
[1750811192122,6.8602,145.7,145.66,8.4983215]
[1750811192522,6.8596,145.71,145.66,8.4983215]
[1750811192722,35.08,145.72,145.66,8.4983215]
[1750811192918,35.08,145.72,145.67,8.4983215]
[1750811193119,41.939,145.72,145.7,6.8596]
[1750811193417,41.939,145.72,145.67,8.4983215]
[1750811193621,6.8595,145.71,145.68,6.8606]
[1750811194123,6.8595,145.71,145.67,8.4983215]
[1750811194325,6.8595,145.71,145.69,6.8601]
[1750811198327,6.8595,145.71,145.68,6.8606]
[1750811199731,6.8595,145.71,145.69,6.8602]
[1750811201732,6.8599,145.7,145.68,6.8607]
[1750811201931,35.08,145.72,145.67,8.4983215]
[1750811202128,2.2401,145.71,145.65,8.4983215]
[1750811202731,6.8608,145.68,145.66,6.8615]
[1750811202930,6.8608,145.68,145.64,8.4983215]
[1750811202931,2.2401,145.71,145.64,8.4983215]
[1750811203128,6.8611,145.68,145.65,6.8619]
[1750811203331,41.9411,145.68,145.65,6.8619]
[1750811203536,35.08,145.68,145.65,6.8619]
[1750811204326,6.8613,145.67,145.65,6.8619]
[1750811205338,35.08,145.68,145.64,6.8624]
[1750811206435,6.8616,145.67,145.65,6.8622]
[1750811206641,35.08,145.68,145.63,8.4983215]
[1750811207340,6.8615,145.67,145.64,6.8625]
[1750811208333,6.8619,145.66,145.64,6.8625]
[1750811209132,6.8619,145.66,145.63,15.3612215]
[1750811209335,6.8619,145.66,145.63,6.8629]
[1750811209830,6.8619,145.66,145.64,6.8626]
[1750811210040,6.8614,145.67,145.63,8.4983215]
[1750811210535,6.8614,145.67,145.64,6.8624]
[1750811210942,6.8618,145.66,145.64,6.8624]
[1750811211445,6.8615,145.67,145.64,6.8624]
[1750811211642,6.8615,145.67,145.65,6.8621]
[1750811215447,35.08,145.68,145.63,8.4983215]
[1750811215641,35.08,145.68,145.64,8.4983215]
[1750811216148,35.08,145.68,145.66,6.8613]
[1750811216752,35.08,145.68,145.64,8.4983215]
[1750811217050,35.08,145.68,145.67,6.8613]
[1750811217345,6.86,145.7,145.65,8.4983215]
[1750811217950,6.86,145.7,145.68,6.8607]
[1750811219355,44.1797,145.71,145.69,6.8603]
[1750811219550,35.08,145.71,145.65,8.4983215]
[1750811219751,35.08,145.71,145.66,8.4983215]
[1750811220257,35.08,145.71,145.69,6.86]
[1750811221153,35.08,145.71,145.66,8.4983215]
[1750811221353,35.08,145.71,145.65,8.4983215]
[1750811221556,35.08,145.71,145.66,8.4983215]
[1750811221749,41.9398,145.71,145.68,6.8606]
[1750811222549,41.9398,145.71,145.69,6.8602]
[1750811223354,6.8599,145.7,145.68,6.8606]
[1750811225955,41.9396,145.71,145.69,6.8603]
[1750811226259,35.08,145.71,145.67,8.49949368]
[1750811226456,6.8601,145.7,145.68,6.8606]
[1750811227265,6.8603,145.69,145.67,6.8611]
[1750811228959,6.8601,145.7,145.68,6.8608]
[1750811229660,35.08,145.71,145.66,8.49949368]
[1750811229862,4.38319367,145.7,145.65,8.49949368]
[1750811230159,35.08,145.71,145.65,15.36149368]
[1750811230160,6.8612,145.68,145.65,15.36149368]
[1750811230358,35.08,145.71,145.65,15.36149368]
[1750811230560,4.38070042,145.7,145.65,15.36149368]
[1750811230758,6.861,145.68,145.66,6.8617]
[1750811235784,6.861,145.68,145.66,15.36119368]
[1750811236273,6.8613,145.67,145.65,15.36149368]
[1750811236874,6.861,145.68,145.65,15.36149368]
[1750811237475,6.8614,145.67,145.65,15.36149368]
[1750811237772,4.37658698,145.7,145.65,15.36149368]
[1750811237970,6.8612,145.68,145.65,15.36149368]
[1750811238172,4.37658698,145.7,145.65,15.36149368]
[1750811238374,6.8612,145.68,145.65,15.36149368]
[1750811239265,6.8612,145.68,145.66,8.49949368]
[1750811239671,6.8612,145.68,145.65,15.36149368]
[1750811239872,6.8612,145.68,145.66,8.49949368]
[1750811240564,4.37722527,145.7,145.66,8.49949368]
[1750811240565,6.8613,145.67,145.66,8.49949368]
[1750811240865,6.8613,145.67,145.65,15.36149368]
[1750811241977,6.8617,145.66,145.65,8.49949368]
[1750811243277,6.8617,145.66,145.64,8.49949368]
[1750811243579,35.02,145.67,145.63,12.74924052]
[1750811243781,35.02,145.67,145.59,16.99898736]
[1750811243782,39.39561665,145.66,145.59,12.80428526]
[1750811243980,4.37561665,145.65,145.59,12.80428526]
[1750811244280,35.02,145.66,145.54,16.99898736]
[1750811244471,4.37130496,145.65,145.53,16.99898736]
[1750811244779,6.8648,145.6,145.57,6.8656]
[1750811246281,35.02,145.62,145.55,35.02]
[1750811246886,35.02,145.62,145.6,6.8644]
[1750811247379,41.8837,145.62,145.6,6.8644]
[1750811247580,41.8837,145.62,145.59,6.8649]
[1750811247775,41.8837,145.62,145.55,35.02]
[1750811249074,41.8837,145.62,145.57,6.8659]
[1750811249274,6.8641,145.61,145.55,35.02]
[1750811250080,6.8641,145.61,145.59,6.8648]
[1750811250976,41.8839,145.62,145.59,6.8648]
[1750811251780,41.8839,145.62,145.6,6.8644]
[1750811252680,41.8839,145.62,145.59,6.8648]
[1750811252880,6.8642,145.61,145.59,6.8648]
[1750811256786,34.98,145.65,145.55,97.02]
[1750811257384,6.8634,145.63,145.55,97.02]
[1750811259290,6.8634,145.63,145.6,6.8641]
[1750811259491,6.8634,145.63,145.55,35.02]
[1750811259685,6.8634,145.63,145.6,6.8643]
[1750811259885,6.8634,145.63,145.55,35.02]
[1750811260693,6.8629,145.64,145.55,35.02]
[1750811260890,34.98,145.65,145.56,13.7328]
[1750811261392,6.8625,145.65,145.57,6.7798]
[1750811262290,6.8625,145.65,145.62,6.8634]
[1750811263191,37.2217,145.67,145.61,6.8638]
[1750811263394,37.2217,145.67,145.59,34.98]
[1750811263894,6.8629,145.64,145.61,6.8639]
[1750811264594,6.8632,145.63,145.59,34.98]
[1750811265585,6.8632,145.63,145.61,6.8639]
[1750811265785,6.8637,145.62,145.59,34.98]
[1750811265984,4.49174154,145.66,145.57,6.7798]
[1750811266188,4.49242821,145.66,145.57,6.7798]
[1750811266501,6.8633,145.63,145.57,6.7798]
[1750811266692,37.2217,145.67,145.61,6.8641]
[1750811267003,6.8631,145.64,145.61,6.8641]
[1750811267305,6.8634,145.63,145.61,6.8641]
[1750811267484,6.8634,145.63,145.6,6.8643]
[1750811267785,6.8634,145.63,145.57,19.53715143]
[1750811269495,6.8634,145.63,145.61,6.8641]
[1750811270101,6.8634,145.63,145.57,19.53715143]
[1750811270102,6.8629,145.64,145.62,6.8635]
[1750811270295,37.2217,145.67,145.62,6.8635]
[1750811270691,6.8625,145.65,145.62,6.8635]
[1750811272100,6.8625,145.65,145.58,12.75735143]
[1750811272101,6.8625,145.65,145.63,6.8631]
[1750811273794,34.98,145.67,145.6,34.98]
[1750811274200,34.98,145.67,145.64,6.8625]
[1750811275099,41.8415,145.67,145.65,6.8622]
[1750811277498,34.98,145.67,145.65,6.8622]
[1750811278407,34.98,145.67,145.66,6.8617]
[1750811278992,34.98,145.67,145.6,47.73735143]
[1750811278993,34.98,145.67,145.65,6.862]
[1750811279703,41.8413,145.67,145.65,6.862]
[1750811280606,6.8619,145.66,145.64,6.8624]
[1750811280803,34.98,145.67,145.64,6.8624]
[1750811281504,41.8415,145.67,145.65,6.8621]
[1750811282205,34.98,145.67,145.66,6.8617]
[1750811283906,6.861,145.68,145.66,6.8617]
[1750811284403,6.861,145.68,145.65,6.8619]
[1750811287107,6.8613,145.67,145.65,6.8619]
[1750811290608,6.8611,145.68,145.66,6.8617]
[1750811292609,6.8606,145.69,145.67,6.8613]
[1750811296006,34.92,145.71,145.64,34.92]
[1750811296205,34.92,145.71,145.64,47.70665799]
[1750811296408,34.92,145.71,145.65,12.78665799]
[1750811296809,41.7794,145.71,145.69,6.86]
[1750811297316,41.7794,145.71,145.65,12.78665799]
[1750811297606,41.7794,145.71,145.68,6.8603]
[1750811297812,41.7794,145.71,145.65,12.78665799]
[1750811298211,34.92,145.71,145.69,6.86]
[1750811298504,6.8592,145.72,145.69,6.86]
[1750811298907,6.8592,145.72,145.7,6.8598]
[1750811300011,6.8592,145.72,145.69,6.8601]
[1750811301011,6.8592,145.72,145.65,12.78665799]
[1750811302111,6.8592,145.72,145.69,6.8599]
[1750811302705,6.8592,145.72,145.7,6.8599]
[1750811302911,37.1217,145.74,145.65,12.78665799]
[1750811303111,37.1217,145.74,145.66,12.78665799]
[1750811303308,37.1217,145.74,145.7,6.8594]
[1750811303807,6.8588,145.73,145.7,6.8594]
[1750811304005,6.8588,145.73,145.71,6.8594]
[1750811305111,37.1217,145.74,145.64,12.78665799]
[1750811305311,4.7372,145.72,145.62,12.78665799]
[1750811305509,4.51052546,145.71,145.62,12.78665799]
[1750811305712,34.92,145.7,145.64,6.8624]
[1750811306415,6.862,145.66,145.64,6.8624]
[1750811311313,6.862,145.66,145.6,34.92]
[1750811311314,6.8614,145.67,145.65,6.8622]
[1750811312613,6.8611,145.68,145.65,6.8622]
[1750811313411,6.8606,145.69,145.63,12.78665799]
[1750811313615,34.92,145.7,145.64,12.78665799]
[1750811313908,34.92,145.7,145.65,12.78665799]
[1750811314109,6.8604,145.69,145.67,6.8611]
[1750811314306,34.92,145.7,145.67,6.8611]
[1750811314609,41.7801,145.7,145.68,6.8607]
[1750811314815,34.92,145.7,145.68,6.8607]
[1750811315008,2.3204,145.72,145.68,6.8607]
[1750811315514,2.3204,145.72,145.65,12.78665799]
[1750811315711,34.86,145.73,145.65,12.78665799]
[1750811315907,34.86,145.73,145.66,19.74915799]
[1750811316801,34.86,145.73,145.71,6.8591]
[1750811318712,34.86,145.73,145.72,6.8589]